[Event "Titled Tuesday Blitz March 01 Late 2022"]
[White "Peatman, Carter"]
[Black "Mickiewicz, Piotr"]
[WhiteFideId "2096480"]
[BlackFideId "1114891"]
[WhiteElo "2285"]
[BlackElo "2266"]
[Result "0-1"]
[Round "05"]
[TimeControl "180+1"]
[Date "2022.03.02"]
[WhiteClock "0:00:18"]
[BlackClock "0:00:39"]

1. d4 {[%clk 0:02:59]}  e6 {[%clk 0:02:58]} 2. Nf3 {[%clk 0:02:57]}  Nf6 {[%clk 0:02:57]} 3. Bf4 {[%clk 0:02:57]}  c5 {[%clk 0:02:56]} 4. e3 {[%clk 0:02:56]}  b6 {[%clk 0:02:56]} 5. Nbd2 {[%clk 0:02:56]}  Bb7 {[%clk 0:02:56]} 6. Bd3 {[%clk 0:02:47]}  Be7 {[%clk 0:02:56]} 7. c3 {[%clk 0:02:46]}  O-O {[%clk 0:02:54]} 8. O-O {[%clk 0:02:44]}  Nh5 {[%clk 0:02:47]} 9. Be5 {[%clk 0:02:35]}  d6 {[%clk 0:02:47]} 10. Ne1 {[%clk 0:02:28]}  g6 {[%clk 0:02:42]} 11. Bg3 {[%clk 0:02:22]}  Nd7 {[%clk 0:02:39]} 12. e4 {[%clk 0:02:21]}  cxd4 {[%clk 0:02:37]} 13. cxd4 {[%clk 0:02:20]}  a6 {[%clk 0:02:16]} 14. a4 {[%clk 0:02:12]}  Nxg3 {[%clk 0:02:01]} 15. hxg3 {[%clk 0:02:12]}  Bf6 {[%clk 0:01:57]} 16. Nef3 {[%clk 0:02:12]}  e5 {[%clk 0:01:54]} 17. d5 {[%clk 0:02:08]}  Bg7 {[%clk 0:01:53]} 18. Nc4 {[%clk 0:01:57]}  Qb8 {[%clk 0:01:52]} 19. Bc2 {[%clk 0:01:44]}  Rc8 {[%clk 0:01:50]} 20. Bb3 {[%clk 0:01:40]}  Bh6 {[%clk 0:01:47]} 21. Qe2 {[%clk 0:01:32]}  Rc5 {[%clk 0:01:44]} 22. Ne3 {[%clk 0:01:26]}  b5 {[%clk 0:01:38]} 23. Rac1 {[%clk 0:01:18]}  Qd8 {[%clk 0:01:27]} 24. Qd2 {[%clk 0:01:17]}  Rac8 {[%clk 0:01:20]} 25. Rfd1 {[%clk 0:01:15]}  Nf6 {[%clk 0:01:18]} 26. Rxc5 {[%clk 0:01:08]}  Rxc5 {[%clk 0:01:18]} 27. Qd3 {[%clk 0:01:08]}  Qc7 {[%clk 0:01:11]} 28. Ne1 {[%clk 0:00:50]}  Bc8 {[%clk 0:01:01]} 29. Kh1 {[%clk 0:00:45]}  Bd7 {[%clk 0:01:01]} 30. axb5 {[%clk 0:00:44]}  axb5 {[%clk 0:01:02]} 31. Qb1 {[%clk 0:00:33]}  Bxe3 {[%clk 0:00:59]} 32. fxe3 {[%clk 0:00:34]}  Ng4 {[%clk 0:00:58]} 33. Rd2 {[%clk 0:00:28]}  Qd8 {[%clk 0:00:52]} 34. Qd1 {[%clk 0:00:23]}  Qg5 {[%clk 0:00:52]} 35. Nf3 {[%clk 0:00:18]}  Qh6+ {[%clk 0:00:51]} 36. Kg1 {[%clk 0:00:18]}  Qxe3+ {[%clk 0:00:51]} 37. Kf1 {[%clk 0:00:19]}  b4 {[%clk 0:00:40]} 38. Qe2 {[%clk 0:00:18]}  Bb5 {[%clk 0:00:39]} 0-1


[Site "https://www.chess.com"]

[Event "Titled Tuesday Blitz March 01 Late 2022"]
[White "Perez Torres, Nabi Isaias"]
[Black "Fishbein, Alexander"]
[WhiteFideId "5120373"]
[BlackFideId "2000377"]
[WhiteElo "1755"]
[BlackElo "2442"]
[Result "0-1"]
[Round "05"]
[TimeControl "180+1"]
[Date "2022.03.02"]
[WhiteClock "0:00:05"]
[BlackClock "0:00:22"]

1. d4 {[%clk 0:03:00]}  Nf6 {[%clk 0:02:59]} 2. c4 {[%clk 0:03:01]}  g6 {[%clk 0:02:58]} 3. Nc3 {[%clk 0:03:00]}  Bg7 {[%clk 0:02:58]} 4. e4 {[%clk 0:03:01]}  O-O {[%clk 0:02:59]} 5. Be2 {[%clk 0:03:01]}  d6 {[%clk 0:02:59]} 6. Nf3 {[%clk 0:03:02]}  e5 {[%clk 0:02:59]} 7. O-O {[%clk 0:03:02]}  exd4 {[%clk 0:02:56]} 8. Nxd4 {[%clk 0:03:03]}  c6 {[%clk 0:02:55]} 9. Bg5 {[%clk 0:02:55]}  Re8 {[%clk 0:02:52]} 10. Qc2 {[%clk 0:02:50]}  Qe7 {[%clk 0:02:47]} 11. Rad1 {[%clk 0:02:24]}  h6 {[%clk 0:02:45]} 12. Bxf6 {[%clk 0:02:12]}  Qxf6 {[%clk 0:02:41]} 13. Rfe1 {[%clk 0:01:54]}  Na6 {[%clk 0:02:40]} 14. Bf1 {[%clk 0:01:51]}  Nc5 {[%clk 0:02:37]} 15. b4 {[%clk 0:01:38]}  Ne6 {[%clk 0:02:37]} 16. Nde2 {[%clk 0:01:11]}  a5 {[%clk 0:02:34]} 17. a3 {[%clk 0:01:08]}  axb4 {[%clk 0:02:33]} 18. axb4 {[%clk 0:01:09]}  Ra3 {[%clk 0:02:32]} 19. Nb1 {[%clk 0:00:54]}  Ra6 {[%clk 0:02:28]} 20. Rxd6 {[%clk 0:00:54]}  Bf8 {[%clk 0:02:20]} 21. Rd3 {[%clk 0:00:48]}  Bxb4 {[%clk 0:02:19]} 22. Red1 {[%clk 0:00:47]}  Bf8 {[%clk 0:02:10]} 23. Nbc3 {[%clk 0:00:43]}  Nc5 {[%clk 0:02:10]} 24. Re3 {[%clk 0:00:40]}  Be6 {[%clk 0:02:07]} 25. Nd4 {[%clk 0:00:39]}  Raa8 {[%clk 0:02:05]} 26. h3 {[%clk 0:00:37]}  Bd7 {[%clk 0:01:59]} 27. Nf3 {[%clk 0:00:29]}  Rad8 {[%clk 0:01:55]} 28. e5 {[%clk 0:00:28]}  Qe7 {[%clk 0:01:49]} 29. Ne4 {[%clk 0:00:27]}  Bf5 {[%clk 0:01:44]} 30. Rxd8 {[%clk 0:00:22]}  Rxd8 {[%clk 0:01:43]} 31. Nfd2 {[%clk 0:00:15]}  Rxd2 {[%clk 0:01:37]} 32. Qxd2 {[%clk 0:00:16]}  Nxe4 {[%clk 0:01:36]} 33. Qd4 {[%clk 0:00:15]}  Nc5 {[%clk 0:01:33]} 34. f4 {[%clk 0:00:14]}  Ne6 {[%clk 0:01:31]} 35. Qc3 {[%clk 0:00:13]}  Qb4 {[%clk 0:01:28]} 36. Qxb4 {[%clk 0:00:11]}  Bxb4 {[%clk 0:01:29]} 37. Rb3 {[%clk 0:00:11]}  c5 {[%clk 0:01:27]} 38. g3 {[%clk 0:00:11]}  Bc2 {[%clk 0:01:25]} 39. Rb2 {[%clk 0:00:11]}  Nd4 {[%clk 0:01:24]} 40. Bg2 {[%clk 0:00:11]}  b6 {[%clk 0:01:23]} 41. Kf2 {[%clk 0:00:12]}  Kf8 {[%clk 0:01:21]} 42. Ke3 {[%clk 0:00:12]}  Ke7 {[%clk 0:01:19]} 43. Ra2 {[%clk 0:00:13]}  Nf5+ {[%clk 0:01:17]} 44. Kf2 {[%clk 0:00:12]}  Nd4 {[%clk 0:01:15]} 45. Bd5 {[%clk 0:00:12]}  Bf5 {[%clk 0:01:01]} 46. Ra7+ {[%clk 0:00:12]}  Bd7 {[%clk 0:00:55]} 47. g4 {[%clk 0:00:10]}  Kd8 {[%clk 0:00:41]} 48. Rb7 {[%clk 0:00:10]}  b5 {[%clk 0:00:39]} 49. cxb5 {[%clk 0:00:09]}  Bxb5 {[%clk 0:00:37]} 50. Rxf7 {[%clk 0:00:07]}  Be8 {[%clk 0:00:33]} 51. Rb7 {[%clk 0:00:07]}  Bc6 {[%clk 0:00:31]} 52. Bxc6 {[%clk 0:00:07]}  Nxc6 {[%clk 0:00:32]} 53. Rb6 {[%clk 0:00:06]}  Kc7 {[%clk 0:00:28]} 54. Rb5 {[%clk 0:00:06]}  g5 {[%clk 0:00:28]} 55. fxg5 {[%clk 0:00:05]}  hxg5 {[%clk 0:00:28]} 56. Kg3 {[%clk 0:00:05]}  Nxe5 {[%clk 0:00:28]} 57. h4 {[%clk 0:00:05]}  gxh4+ {[%clk 0:00:28]} 58. Kxh4 {[%clk 0:00:05]}  Kc6 {[%clk 0:00:28]} 59. Rb8 {[%clk 0:00:05]}  Be1+ {[%clk 0:00:28]} 60. Kh5 {[%clk 0:00:05]}  c4 {[%clk 0:00:28]} 61. Rc8+ {[%clk 0:00:05]}  Kd5 {[%clk 0:00:28]} 62. g5 {[%clk 0:00:05]}  Nc6 {[%clk 0:00:26]} 63. g6 {[%clk 0:00:04]}  Bc3 {[%clk 0:00:27]} 64. Kh6 {[%clk 0:00:04]}  Be5 {[%clk 0:00:24]} 65. Kg5 {[%clk 0:00:04]}  c3 {[%clk 0:00:23]} 66. Re8 {[%clk 0:00:04]}  c2 {[%clk 0:00:22]} 67. Rxe5+ {[%clk 0:00:04]}  Nxe5 {[%clk 0:00:22]} 68. g7 {[%clk 0:00:04]}  c1=Q+ {[%clk 0:00:22]} 69. Kf6 {[%clk 0:00:04]}  Qf4+ {[%clk 0:00:22]} 70. Ke7 {[%clk 0:00:04]}  Qf7+ {[%clk 0:00:22]} 71. Kd8 {[%clk 0:00:05]}  Qd7# {[%clk 0:00:22]} 0-1


[Site "https://www.chess.com"]

[Event "Titled Tuesday Blitz March 01 Late 2022"]
[White "Piesik, Piotr"]
[Black "Rustemov, Alexander"]
[WhiteFideId "1136194"]
[BlackFideId "4119002"]
[WhiteElo "2232"]
[BlackElo "2790"]
[Result "1-0"]
[Round "05"]
[TimeControl "180+1"]
[Date "2022.03.01"]
[WhiteClock "0:00:42"]
[BlackClock "0:00:04"]

1. Nf3 {[%clk 0:03:00]}  d5 {[%clk 0:02:59]} 2. g3 {[%clk 0:03:00]}  Nf6 {[%clk 0:03:00]} 3. Bg2 {[%clk 0:03:01]}  c6 {[%clk 0:03:00]} 4. O-O {[%clk 0:03:02]}  Bf5 {[%clk 0:03:01]} 5. c4 {[%clk 0:03:02]}  dxc4 {[%clk 0:03:00]} 6. Na3 {[%clk 0:02:56]}  e5 {[%clk 0:03:00]} 7. Nxc4 {[%clk 0:02:50]}  e4 {[%clk 0:02:59]} 8. Ne1 {[%clk 0:02:44]}  Qd7 {[%clk 0:02:57]} 9. Ne3 {[%clk 0:02:40]}  Bh3 {[%clk 0:02:57]} 10. d3 {[%clk 0:02:40]}  Bxg2 {[%clk 0:02:56]} 11. Kxg2 {[%clk 0:02:41]}  Qe6 {[%clk 0:02:50]} 12. dxe4 {[%clk 0:02:39]}  Qxe4+ {[%clk 0:02:46]} 13. Nf3 {[%clk 0:02:38]}  Nbd7 {[%clk 0:02:44]} 14. Qc2 {[%clk 0:02:37]}  Qxc2 {[%clk 0:02:40]} 15. Nxc2 {[%clk 0:02:38]}  Be7 {[%clk 0:02:33]} 16. Rd1 {[%clk 0:02:35]}  Nb6 {[%clk 0:02:26]} 17. b3 {[%clk 0:02:34]}  Nfd5 {[%clk 0:02:21]} 18. Bb2 {[%clk 0:02:33]}  Bf6 {[%clk 0:02:21]} 19. Bxf6 {[%clk 0:02:33]}  Nxf6 {[%clk 0:02:22]} 20. Ne3 {[%clk 0:02:30]}  g6 {[%clk 0:02:19]} 21. Ne5 {[%clk 0:02:25]}  Ke7 {[%clk 0:02:18]} 22. Rd3 {[%clk 0:02:23]}  Rhd8 {[%clk 0:02:16]} 23. Rad1 {[%clk 0:02:23]}  Rxd3 {[%clk 0:02:15]} 24. Rxd3 {[%clk 0:02:24]}  Ke6 {[%clk 0:02:12]} 25. N5c4 {[%clk 0:02:23]}  Nfd5 {[%clk 0:01:45]} 26. Na5 {[%clk 0:02:19]}  Rb8 {[%clk 0:01:41]} 27. Nxd5 {[%clk 0:02:19]}  Nxd5 {[%clk 0:01:40]} 28. e4 {[%clk 0:02:15]}  Nb4 {[%clk 0:01:30]} 29. Rd2 {[%clk 0:02:15]}  b6 {[%clk 0:01:27]} 30. Nc4 {[%clk 0:02:15]}  c5 {[%clk 0:01:22]} 31. a3 {[%clk 0:02:10]}  Na6 {[%clk 0:01:22]} 32. Rd6+ {[%clk 0:02:09]}  Ke7 {[%clk 0:01:22]} 33. e5 {[%clk 0:02:09]}  Nc7 {[%clk 0:01:15]} 34. f4 {[%clk 0:02:02]}  Ne6 {[%clk 0:01:12]} 35. Ne3 {[%clk 0:02:00]}  Nc7 {[%clk 0:01:04]} 36. Kf3 {[%clk 0:01:59]}  Rd8 {[%clk 0:01:03]} 37. Rxd8 {[%clk 0:01:57]}  Kxd8 {[%clk 0:01:04]} 38. Ke4 {[%clk 0:01:58]}  h5 {[%clk 0:01:02]} 39. h3 {[%clk 0:01:54]}  Kd7 {[%clk 0:01:02]} 40. g4 {[%clk 0:01:53]}  hxg4 {[%clk 0:01:01]} 41. hxg4 {[%clk 0:01:54]}  Kc6 {[%clk 0:00:59]} 42. f5 {[%clk 0:01:53]}  gxf5+ {[%clk 0:00:58]} 43. gxf5 {[%clk 0:01:54]}  b5 {[%clk 0:00:58]} 44. Ng4 {[%clk 0:01:51]}  Ne8 {[%clk 0:00:40]} 45. Nh6 {[%clk 0:01:41]}  f6 {[%clk 0:00:40]} 46. Ng4 {[%clk 0:01:42]}  fxe5 {[%clk 0:00:37]} 47. Kxe5 {[%clk 0:01:42]}  Nd6 {[%clk 0:00:27]} 48. f6 {[%clk 0:01:38]}  Nf7+ {[%clk 0:00:13]} 49. Ke6 {[%clk 0:01:35]}  Ng5+ {[%clk 0:00:13]} 50. Kf5 {[%clk 0:01:35]}  Nh7 {[%clk 0:00:10]} 51. f7 {[%clk 0:01:23]}  Nf8 {[%clk 0:00:07]} 52. Ke5 {[%clk 0:00:55]}  a5 {[%clk 0:00:07]} 53. Ne3 {[%clk 0:00:50]}  Nd7+ {[%clk 0:00:04]} 54. Ke6 {[%clk 0:00:50]}  Nf8+ {[%clk 0:00:04]} 55. Ke7 {[%clk 0:00:49]}  Ng6+ {[%clk 0:00:04]} 56. Ke8 {[%clk 0:00:49]}  Kd6 {[%clk 0:00:03]} 57. Nf5+ {[%clk 0:00:45]}  Ke5 {[%clk 0:00:03]} 58. Nh4 {[%clk 0:00:43]}  Nxh4 {[%clk 0:00:02]} 59. f8=Q {[%clk 0:00:43]}  Kd4 {[%clk 0:00:02]} 60. Qf6+ {[%clk 0:00:42]}  Kd3 {[%clk 0:00:02]} 61. Qxh4 {[%clk 0:00:42]}  Kc3 {[%clk 0:00:01]} 62. a4 {[%clk 0:00:40]}  c4 {[%clk 0:00:01]} 63. bxc4 {[%clk 0:00:38]}  b4 {[%clk 0:00:01]} 64. c5 {[%clk 0:00:37]}  b3 {[%clk 0:00:01]} 65. c6 {[%clk 0:00:38]}  b2 {[%clk 0:00:02]} 66. Qe1+ {[%clk 0:00:37]}  Kc2 {[%clk 0:00:01]} 67. c7 {[%clk 0:00:38]}  b1=Q {[%clk 0:00:01]} 68. Qxb1+ {[%clk 0:00:38]}  Kxb1 {[%clk 0:00:02]} 69. c8=Q {[%clk 0:00:38]}  Kb2 {[%clk 0:00:03]} 70. Qc4 {[%clk 0:00:38]}  Ka3 {[%clk 0:00:03]} 71. Qb5 {[%clk 0:00:38]}  Ka2 {[%clk 0:00:03]} 72. Kd7 {[%clk 0:00:39]}  Ka3 {[%clk 0:00:03]} 73. Kd6 {[%clk 0:00:40]}  Ka2 {[%clk 0:00:03]} 74. Kd5 {[%clk 0:00:41]}  Ka1 {[%clk 0:00:03]} 75. Kd4 {[%clk 0:00:41]}  Ka2 {[%clk 0:00:04]} 76. Kc3 {[%clk 0:00:42]}  Ka1 {[%clk 0:00:04]} 77. Qb2# {[%clk 0:00:42]} 1-0


[Site "https://www.chess.com"]

[Event "Titled Tuesday Blitz March 01 Late 2022"]
[White "Prohorov, Olexandr"]
[Black "Elissalt Cardenas, Hector"]
[WhiteFideId "14105578"]
[BlackFideId "3500632"]
[WhiteElo "1993"]
[BlackElo "2159"]
[Result "1-0"]
[Round "05"]
[TimeControl "180+1"]
[Date "2022.03.02"]
[WhiteClock "0:00:26"]
[BlackClock "0:00:13"]

1. e4 {[%clk 0:03:00]}  d6 {[%clk 0:02:56]} 2. d4 {[%clk 0:03:00]}  Nf6 {[%clk 0:02:46]} 3. Nc3 {[%clk 0:03:01]}  e5 {[%clk 0:02:39]} 4. f3 {[%clk 0:03:02]}  Nbd7 {[%clk 0:02:33]} 5. Be3 {[%clk 0:03:01]}  c6 {[%clk 0:02:30]} 6. Bc4 {[%clk 0:02:53]}  Be7 {[%clk 0:02:25]} 7. Qd2 {[%clk 0:02:52]}  b5 {[%clk 0:02:21]} 8. Bd3 {[%clk 0:02:44]}  O-O {[%clk 0:02:05]} 9. a4 {[%clk 0:02:41]}  b4 {[%clk 0:02:01]} 10. Nce2 {[%clk 0:02:41]}  d5 {[%clk 0:01:59]} 11. g4 {[%clk 0:02:20]}  dxe4 {[%clk 0:01:45]} 12. Bxe4 {[%clk 0:02:19]}  Nxe4 {[%clk 0:01:38]} 13. fxe4 {[%clk 0:02:20]}  Nf6 {[%clk 0:01:38]} 14. O-O-O {[%clk 0:02:13]}  Nxe4 {[%clk 0:01:33]} 15. Qd3 {[%clk 0:02:13]}  Nf6 {[%clk 0:01:28]} 16. g5 {[%clk 0:02:13]}  e4 {[%clk 0:01:18]} 17. Qc4 {[%clk 0:02:05]}  Ng4 {[%clk 0:01:03]} 18. Qxc6 {[%clk 0:01:29]}  Bf5 {[%clk 0:00:55]} 19. Bf4 {[%clk 0:01:16]}  Rc8 {[%clk 0:00:47]} 20. Qb5 {[%clk 0:01:15]}  e3 {[%clk 0:00:43]} 21. Qxf5 {[%clk 0:01:13]}  Nf2 {[%clk 0:00:37]} 22. Nf3 {[%clk 0:01:12]}  Nxh1 {[%clk 0:00:36]} 23. Rxh1 {[%clk 0:01:13]}  Bd6 {[%clk 0:00:29]} 24. Re1 {[%clk 0:01:00]}  Bxf4 {[%clk 0:00:26]} 25. Qxf4 {[%clk 0:01:01]}  Re8 {[%clk 0:00:24]} 26. Ng3 {[%clk 0:00:55]}  Qd5 {[%clk 0:00:20]} 27. Kb1 {[%clk 0:00:50]}  b3 {[%clk 0:00:19]} 28. c3 {[%clk 0:00:26]}  Qc6 {[%clk 0:00:13]} 29. Rxe3 {[%clk 0:00:26]}  Qxa4 {[%clk 0:00:13]} 30. Rxe8+ {[%clk 0:00:26]}  Rxe8 {[%clk 0:00:12]} 31. Ne5 {[%clk 0:00:25]}  Qa2+ {[%clk 0:00:12]} 32. Kc1 {[%clk 0:00:26]}  Qa1+ {[%clk 0:00:13]} 33. Kd2 {[%clk 0:00:26]}  Qxb2+ {[%clk 0:00:13]} 34. Kd3 {[%clk 0:00:26]}  Qc2+ {[%clk 0:00:13]} 35. Kc4 {[%clk 0:00:27]}  b2 {[%clk 0:00:13]} 36. Qxf7+ {[%clk 0:00:26]} 1-0


[Site "https://www.chess.com"]

[Event "Titled Tuesday Blitz March 01 Late 2022"]
[White "Quesada Perez, Yuniesky"]
[Black "Rosen, Eric"]
[WhiteFideId "3504409"]
[BlackFideId "2032562"]
[WhiteElo "2622"]
[BlackElo "2362"]
[Result "1-0"]
[Round "05"]
[TimeControl "180+1"]
[Date "2022.03.01"]
[WhiteClock "0:00:12"]
[BlackClock "0:00:02"]

1. d4 {[%clk 0:02:49]}  d5 {[%clk 0:02:56]} 2. Nf3 {[%clk 0:02:50]}  Nf6 {[%clk 0:02:56]} 3. g3 {[%clk 0:02:50]}  e6 {[%clk 0:02:55]} 4. Bg2 {[%clk 0:02:50]}  Be7 {[%clk 0:02:56]} 5. O-O {[%clk 0:02:50]}  b5 {[%clk 0:02:56]} 6. b3 {[%clk 0:02:45]}  O-O {[%clk 0:02:56]} 7. Bb2 {[%clk 0:02:45]}  a5 {[%clk 0:02:49]} 8. c4 {[%clk 0:02:35]}  c6 {[%clk 0:02:36]} 9. Ne5 {[%clk 0:02:34]}  Nfd7 {[%clk 0:02:33]} 10. cxd5 {[%clk 0:02:26]}  cxd5 {[%clk 0:02:30]} 11. Nc3 {[%clk 0:02:05]}  Nxe5 {[%clk 0:02:27]} 12. dxe5 {[%clk 0:02:06]}  b4 {[%clk 0:02:28]} 13. Na4 {[%clk 0:02:05]}  Ba6 {[%clk 0:02:26]} 14. Rc1 {[%clk 0:02:04]}  Nd7 {[%clk 0:02:24]} 15. Bd4 {[%clk 0:02:04]}  Rc8 {[%clk 0:02:20]} 16. Qd2 {[%clk 0:02:03]}  Bb5 {[%clk 0:02:07]} 17. e4 {[%clk 0:01:17]}  Bxf1 {[%clk 0:01:44]} 18. Rxf1 {[%clk 0:01:17]}  dxe4 {[%clk 0:01:40]} 19. Qe3 {[%clk 0:01:17]}  Qc7 {[%clk 0:01:27]} 20. Bxe4 {[%clk 0:01:17]}  Nxe5 {[%clk 0:01:13]} 21. Bxe5 {[%clk 0:01:16]}  Bd6 {[%clk 0:00:53]} 22. Bb2 {[%clk 0:01:04]}  Rfd8 {[%clk 0:00:46]} 23. Rc1 {[%clk 0:00:41]}  Qe7 {[%clk 0:00:42]} 24. Rxc8 {[%clk 0:00:38]}  Rxc8 {[%clk 0:00:43]} 25. Qd4 {[%clk 0:00:38]}  f6 {[%clk 0:00:38]} 26. Kg2 {[%clk 0:00:37]}  Be5 {[%clk 0:00:37]} 27. Qd2 {[%clk 0:00:35]}  Bxb2 {[%clk 0:00:37]} 28. Nxb2 {[%clk 0:00:35]}  Rd8 {[%clk 0:00:33]} 29. Qc2 {[%clk 0:00:35]}  f5 {[%clk 0:00:32]} 30. Bf3 {[%clk 0:00:36]}  g5 {[%clk 0:00:29]} 31. h3 {[%clk 0:00:34]}  Qg7 {[%clk 0:00:26]} 32. Nc4 {[%clk 0:00:31]}  Qc7 {[%clk 0:00:11]} 33. Qe2 {[%clk 0:00:29]}  Re8 {[%clk 0:00:08]} 34. Qe3 {[%clk 0:00:29]}  h6 {[%clk 0:00:08]} 35. Qd4 {[%clk 0:00:29]}  e5 {[%clk 0:00:07]} 36. Qd5+ {[%clk 0:00:27]}  Kg7 {[%clk 0:00:07]} 37. Nd6 {[%clk 0:00:22]}  Rf8 {[%clk 0:00:06]} 38. Qxe5+ {[%clk 0:00:22]}  Kg6 {[%clk 0:00:05]} 39. Qe6+ {[%clk 0:00:20]}  Rf6 {[%clk 0:00:04]} 40. Bh5+ {[%clk 0:00:17]}  Kxh5 {[%clk 0:00:03]} 41. Qxf6 {[%clk 0:00:16]}  Qc6+ {[%clk 0:00:04]} 42. Kh2 {[%clk 0:00:16]}  Qd5 {[%clk 0:00:04]} 43. Nxf5 {[%clk 0:00:14]}  g4 {[%clk 0:00:02]} 44. Qxh6# {[%clk 0:00:12]} 1-0


[Site "https://www.chess.com"]

[Event "Titled Tuesday Blitz March 01 Late 2022"]
[White "Ruiz Aguilar, Pablo Alexander"]
[Black "Karttunen, Mika"]
[WhiteFideId "4401352"]
[BlackFideId "502081"]
[WhiteElo "2125"]
[BlackElo "2343"]
[Result "1-0"]
[Round "05"]
[TimeControl "180+1"]
[Date "2022.03.02"]
[WhiteClock "0:00:20"]
[BlackClock "0:00:01"]

1. e4 {[%clk 0:02:54]}  e5 {[%clk 0:02:57]} 2. Nf3 {[%clk 0:02:53]}  Nc6 {[%clk 0:02:57]} 3. Bb5 {[%clk 0:02:54]}  a6 {[%clk 0:02:57]} 4. Ba4 {[%clk 0:02:54]}  Nf6 {[%clk 0:02:55]} 5. d3 {[%clk 0:02:52]}  d6 {[%clk 0:02:52]} 6. c3 {[%clk 0:02:50]}  Be7 {[%clk 0:02:52]} 7. O-O {[%clk 0:02:49]}  O-O {[%clk 0:02:52]} 8. Re1 {[%clk 0:02:49]}  h6 {[%clk 0:02:43]} 9. Nbd2 {[%clk 0:02:49]}  Be6 {[%clk 0:02:39]} 10. Nf1 {[%clk 0:02:48]}  b5 {[%clk 0:02:29]} 11. Bc2 {[%clk 0:02:47]}  Na5 {[%clk 0:02:11]} 12. d4 {[%clk 0:02:45]}  exd4 {[%clk 0:01:43]} 13. cxd4 {[%clk 0:02:44]}  c5 {[%clk 0:01:43]} 14. d5 {[%clk 0:02:39]}  Bg4 {[%clk 0:01:37]} 15. h3 {[%clk 0:02:38]}  Bh5 {[%clk 0:01:36]} 16. Ng3 {[%clk 0:02:37]}  Bg6 {[%clk 0:01:36]} 17. Nh4 {[%clk 0:02:32]}  Nd7 {[%clk 0:01:28]} 18. Nhf5 {[%clk 0:02:25]}  Nc4 {[%clk 0:01:19]} 19. f4 {[%clk 0:02:22]}  Bf6 {[%clk 0:01:10]} 20. Rb1 {[%clk 0:02:14]}  Bh4 {[%clk 0:00:36]} 21. Qg4 {[%clk 0:01:45]}  h5 {[%clk 0:00:31]} 22. Qxh4 {[%clk 0:01:35]}  Nf6 {[%clk 0:00:14]} 23. Bd3 {[%clk 0:01:13]}  Re8 {[%clk 0:00:14]} 24. Bxc4 {[%clk 0:00:55]}  bxc4 {[%clk 0:00:14]} 25. Bd2 {[%clk 0:00:56]}  Nxd5 {[%clk 0:00:05]} 26. Qxd8 {[%clk 0:00:54]}  Raxd8 {[%clk 0:00:04]} 27. exd5 {[%clk 0:00:54]}  h4 {[%clk 0:00:04]} 28. Ne7+ {[%clk 0:00:43]}  Rxe7 {[%clk 0:00:03]} 29. Rxe7 {[%clk 0:00:33]}  Bxb1 {[%clk 0:00:03]} 30. Nf1 {[%clk 0:00:28]}  Bxa2 {[%clk 0:00:03]} 31. Bc3 {[%clk 0:00:27]}  Kf8 {[%clk 0:00:03]} 32. Ra7 {[%clk 0:00:26]}  Re8 {[%clk 0:00:03]} 33. Kf2 {[%clk 0:00:25]}  Bb1 {[%clk 0:00:03]} 34. Ne3 {[%clk 0:00:24]}  Be4 {[%clk 0:00:03]} 35. Rxa6 {[%clk 0:00:22]}  Rd8 {[%clk 0:00:03]} 36. Ra7 {[%clk 0:00:22]}  f6 {[%clk 0:00:03]} 37. f5 {[%clk 0:00:21]}  Re8 {[%clk 0:00:01]} 38. Rd7 {[%clk 0:00:20]} 1-0


[Site "https://www.chess.com"]

[Event "Titled Tuesday Blitz March 01 Late 2022"]
[White "Seo, Jung Min"]
[Black "Golubev, Mikhail"]
[WhiteFideId "1734687"]
[BlackFideId "14100983"]
[WhiteElo "2401"]
[BlackElo "2374"]
[Result "1/2-1/2"]
[Round "05"]
[TimeControl "180+1"]
[Date "2022.03.01"]
[WhiteClock "0:00:59"]
[BlackClock "0:00:03"]

1. e4 {[%clk 0:03:00]}  c5 {[%clk 0:02:59]} 2. Nf3 {[%clk 0:03:00]}  d6 {[%clk 0:02:59]} 3. d4 {[%clk 0:03:00]}  Nf6 {[%clk 0:02:59]} 4. Nc3 {[%clk 0:02:55]}  cxd4 {[%clk 0:02:59]} 5. Nxd4 {[%clk 0:02:55]}  g6 {[%clk 0:03:00]} 6. Be2 {[%clk 0:02:54]}  Bg7 {[%clk 0:03:00]} 7. Be3 {[%clk 0:02:54]}  Nc6 {[%clk 0:02:59]} 8. Qd2 {[%clk 0:02:54]}  O-O {[%clk 0:02:59]} 9. O-O-O {[%clk 0:02:54]}  Ng4 {[%clk 0:02:57]} 10. Bxg4 {[%clk 0:02:54]}  Bxg4 {[%clk 0:02:58]} 11. f3 {[%clk 0:02:54]}  Bd7 {[%clk 0:02:58]} 12. h4 {[%clk 0:02:52]}  Ne5 {[%clk 0:02:54]} 13. b3 {[%clk 0:02:52]}  Rc8 {[%clk 0:02:54]} 14. Kb1 {[%clk 0:02:50]}  Re8 {[%clk 0:02:41]} 15. h5 {[%clk 0:02:49]}  Qa5 {[%clk 0:02:37]} 16. Nce2 {[%clk 0:02:42]}  Qxd2 {[%clk 0:02:33]} 17. Rxd2 {[%clk 0:02:42]}  b5 {[%clk 0:02:30]} 18. hxg6 {[%clk 0:02:40]}  hxg6 {[%clk 0:02:31]} 19. Kb2 {[%clk 0:02:38]}  a5 {[%clk 0:02:29]} 20. c3 {[%clk 0:02:37]}  b4 {[%clk 0:02:22]} 21. c4 {[%clk 0:02:36]}  Rxc4 {[%clk 0:02:17]} 22. bxc4 {[%clk 0:02:28]}  Nxc4+ {[%clk 0:02:17]} 23. Kb3 {[%clk 0:02:22]}  Nxe3 {[%clk 0:02:13]} 24. Rc1 {[%clk 0:02:04]}  Rb8 {[%clk 0:01:57]} 25. Rc7 {[%clk 0:02:00]}  a4+ {[%clk 0:01:53]} 26. Kb2 {[%clk 0:02:00]}  Bb5 {[%clk 0:01:46]} 27. Kb1 {[%clk 0:01:54]}  Nc4 {[%clk 0:01:35]} 28. Rd1 {[%clk 0:01:52]}  Na3+ {[%clk 0:01:33]} 29. Kc1 {[%clk 0:01:52]}  Bxe2 {[%clk 0:01:32]} 30. Nxe2 {[%clk 0:01:52]}  b3 {[%clk 0:01:32]} 31. axb3 {[%clk 0:01:44]}  axb3 {[%clk 0:01:33]} 32. Rxe7 {[%clk 0:01:40]}  b2+ {[%clk 0:01:28]} 33. Kd2 {[%clk 0:01:40]}  b1=Q {[%clk 0:01:26]} 34. Rxb1 {[%clk 0:01:40]}  Nxb1+ {[%clk 0:01:23]} 35. Kd3 {[%clk 0:01:39]}  Rb3+ {[%clk 0:01:14]} 36. Kc2 {[%clk 0:01:38]}  Rb2+ {[%clk 0:01:12]} 37. Kd3 {[%clk 0:01:37]}  Rd2+ {[%clk 0:01:00]} 38. Ke3 {[%clk 0:01:37]}  Rd1 {[%clk 0:00:58]} 39. Re8+ {[%clk 0:01:34]}  Kh7 {[%clk 0:00:54]} 40. Re7 {[%clk 0:01:34]}  f5 {[%clk 0:00:50]} 41. exf5 {[%clk 0:01:28]}  gxf5 {[%clk 0:00:51]} 42. Kf2 {[%clk 0:01:24]}  Rd2 {[%clk 0:00:38]} 43. Ke1 {[%clk 0:01:20]}  Ra2 {[%clk 0:00:35]} 44. Nf4 {[%clk 0:01:19]}  Kg8 {[%clk 0:00:27]} 45. g4 {[%clk 0:01:14]}  Be5 {[%clk 0:00:26]} 46. Ng6 {[%clk 0:01:09]}  Bg3+ {[%clk 0:00:25]} 47. Kd1 {[%clk 0:01:09]}  Nc3+ {[%clk 0:00:23]} 48. Kc1 {[%clk 0:01:09]}  f4 {[%clk 0:00:21]} 49. Rc7 {[%clk 0:01:04]}  Be1 {[%clk 0:00:20]} 50. Ne7+ {[%clk 0:01:00]}  Kf8 {[%clk 0:00:04]} 51. Ng6+ {[%clk 0:01:00]}  Kg8 {[%clk 0:00:04]} 52. Ne7+ {[%clk 0:01:00]}  Kf8 {[%clk 0:00:03]} 53. Ng6+ {[%clk 0:00:59]}  Kg8 {[%clk 0:00:03]} 1/2-1/2


[Site "https://www.chess.com"]